Cogmind - Beta 17 @@@ ROGUE MODE // 2026.07.23 @ 15:14:37 Player: V1-Dll Result: Self-destructed Performance ------------- Evolutions (1) 500 Regions Visited (3) 600 Robots Destroyed (18) 90 Value Destroyed (163) 163 Prototype IDs (0) 0 Alien Tech Used (0) 0 Bonus (0) 0 TOTAL SCORE: 1353 Bonus ------- None Cogmind --------- Core Integrity 400/400 Matter 156/300 Energy 98/100 System Corruption 0% Temperature Cool (4) Movement Flying (37) Location -9/Materials Parts ------- > --- POWER (1) -------- (None) > --- PROPULSION (2) --- Flight Unit Flight Unit > --- UTILITY (4) ------ Small Storage Unit Targeting Computer > --- WEAPON (2) ------- (None) > --- INVENTORY (8) ---- Wheel Flight Unit Flight Unit Flight Unit Assault Rifle Light Assault Rifle Rocket Launcher Peak State ------------ > --- POWER ------------ Light Ion Engine > --- PROPULSION ------- Flight Unit Flight Unit > --- UTILITY ---------- Small Storage Unit Targeting Computer > --- WEAPON ----------- Assault Rifle Light Assault Rifle > --- INVENTORY -------- Wheel Flight Unit [Rating: 7] Favorites ----------- Power Light Ion Engine Engine Light Ion Engine Propulsion Flight Unit Leg Aluminum Leg Flight Unit Flight Unit Utility Small Storage Unit Storage Small Storage Unit Processor Targeting Computer Weapon Light Assault Rifle Ballistic Gun Light Assault Rifle Launcher Rocket Launcher Build | -11 -10 -10 -9 ------- Run | Yrd Mat Min Mat Slots Evolved 2 | . . . 2 Power . | . . . . Propulsion . | . . . . Utility 2 | . . . 2 Weapon . | . . . . Parts Attached 14 | 6 5 3 . Power 2 | 1 . 1 . Engine 2 | 1 . 1 . Core . | . . . . Reactor . | . . . . Propulsion 7 | 2 4 1 . Treads . | . . . . Leg 2 | 2 . . . Wheel . | . . . . Hover . | . . . . Flight 5 | . 4 1 . Utility 2 | 1 1 . . Device . | . . . . Storage 1 | 1 . . . Processor 1 | . 1 . . Hackware . | . . . . Protection . | . . . . Artifact . | . . . . Weapon 3 | 2 . 1 . Energy Gun . | . . . . Energy Cannon . | . . . . Ballistic Gun 2 | 2 . . . Ballistic Cannon . | . . . . Launcher 1 | . . 1 . Special Weapon . | . . . . Impact Weapon . | . . . . Slashing Weapon . | . . . . Piercing Weapon . | . . . . Special Melee Weapon . | . . . . Unidentified Prototypes . | . . . . Parts Lost 2 | . 1 1 . Power 1 | . 1 . . Propulsion 1 | . . 1 . Utility . | . . . . Weapon . | . . . . Highest Loss Streak 1 | . 1 1 . To Critical Strikes . | . . . . Average Backups 5 | . 4 7 7 Power . | . . . . Propulsion 4 | . 2 5 4 Utility . | . . . . Weapon 1 | . 1 2 3 Tool/Special . | . . . . Unused Backups 4 | . . . 4 Power . | . . . . Propulsion 4 | . . . 4 Utility . | . . . . Weapon . | . . . . Tool/Special . | . . . . Average Slot Usage (%) 77 | . 78 78 44 Engine 9 | . 12 9 . Leg 1 | . 3 . . Flight 26 | . 23 28 22 Storage 13 | . 14 14 11 Processor 12 | . 10 14 11 Ballistic Gun 7 | . 12 4 . Launcher 5 | . . 7 . Peak Build Rating 7 | 6 7 7 4 Average Rating 5 | 4 5 6 4 On Entrance 3 | . 6 4 4 Avg Prop Armor Cover (%) . | . . . . Naked Turns . | . . . . Heaviest Build 12 | 11 11 12 5 Greatest Support 20 | 20 20 8 8 Greatest Overweight (x) 2 | . 2 1 . Average Overweight (x) . | . . . . Largest Inventory Capacity 8 | 8 8 8 8 Average Capacity 7 | 6 8 8 8 Most Carried 8 | 1 8 8 7 Average Carried 5 | . 4 7 7 Final Capacity 8 | 8 8 8 8 Final Carried 8 | 1 8 7 7 Class Distribution -------------------- 100% | Mutant Dominant Class ---------------- Mutant | -10/Materials Mutant | -10/Mines Mutant | -9/Materials Resources | -11 -10 -10 -9 ----------- Run | Yrd Mat Min Mat Matter Collected 387 | 248 31 108 . Remotely . | . . . . Salvage Created 166 | . 51 115 . Parts 28 | . 5 23 . Haulers Intercepted . | . . . . Recyclers Shooed . | . . . . Parts Field Recycled . | . . . . Retrieved Matter . | . . . . Parts Self-Destructed . | . . . . Prevented . | . . . . Parts Restored . | . . . . Kills | -11 -10 -10 -9 ------- Run | Yrd Mat Min Mat Combat Hostiles Destroyed 15 | . 3 12 . Guns 3 | . 3 . . AOE 12 | . . 12 . Classes Destroyed 2 | . 1 1 . Worker 3 | . . 3 . Swarmer 15 | . 3 12 . Best Kill Streak 5 | . 3 5 . Combat Bots Only 3 | . 3 3 . Max Kills in Single Turn 4 | . 1 4 . Gunslinging . | . . . . Exploded 3 | . . 3 . Melee . | . . . . Uniques/NPCs Destroyed . | . . . . Combat | -11 -10 -10 -9 -------- Run | Yrd Mat Min Mat Hostile Shots Fired 68 | . 40 28 . Missed 38 | . 22 16 . Hits 30 | . 18 12 . Projectile 30 | . 18 12 . Damage Taken 335 | . 158 177 . Core 131 | . 31 100 . Absorbed by Shields . | . . . . Core Remaining (%) 73 | 100 . 47 . Volleys Fired 22 | . 14 8 . Largest 2 | . 2 1 . Hottest 40 | . 40 33 . Shots Fired 36 | . 28 8 . Gun 28 | . 28 . . Cannon . | . . . . Launcher 8 | . . 8 . Special . | . . . . Kinetic 28 | . 28 . . Thermal . | . . . . Explosive 8 | . . 8 . Electromagnetic . | . . . . Robot Hit Streak 3 | . 3 2 . Robot Miss Streak 4 | . 4 2 . Penetration Max . | . . . . Secondary Targets . | . . . . Shots Hit Robots 16 | . 14 2 . Core Hits 22 | . 4 18 . Critical Kills . | . . . . Critical Parts Destroyed . | . . . . Critical Strikes . | . . . . Melee Attacks . | . . . . Impact . | . . . . Slashing . | . . . . Piercing . | . . . . Sneak Attacks . | . . . . Combat Hostiles . | . . . . Follow-up Attacks . | . . . . Damage Inflicted 991 | . 146 845 . Guns 146 | . 146 . . Cannons . | . . . . Explosions 842 | . . 842 . Melee . | . . . . Ramming 3 | . . 3 . Kinetic 146 | . 146 . . Thermal . | . . . . Explosive 842 | . . 842 . Electromagnetic . | . . . . Impact . | . . . . Slashing . | . . . . Piercing . | . . . . Highest Corruption . | . . . . Average Corruption . | . . . . Corruption Purged . | . . . . Corruption Blocked . | . . . . Overload Shots . | . . . . Overflow Damage 48 | . . 48 . Projectiles . | . . . . Explosions 48 | . . 48 . Melee . | . . . . Knockbacks . | . . . . Impact . | . . . . Kinetic . | . . . . Secondary . | . . . . Self-Inflicted Damage 52 | . . 52 . Shots 3 | . . 3 . Rammed 1 | . . 1 . Targets Rammed 1 | . . 1 . Kicked . | . . . . Crushed . | . . . . Highest Temperature 8 | . 8 . . Average Temperature 3 | . 3 . . Received Heat Transfer 39 | . 9 30 . Siege Activations . | . . . . Martial Activations . | . . . . Shielding Activations . | . . . . Robots Disrupted . | . . . . Combat Hostiles . | . . . . Robots Corrupted . | . . . . Combat Hostiles . | . . . . Parts Fried . | . . . . Impact Corruptions . | . . . . Robots Melted . | . . . . Combat Hostiles . | . . . . Parts Melted . | . . . . Heat Transferred . | . . . . Parts Sabotaged . | . . . . Parts Stolen . | . . . . Parts Stripped . | . . . . Power Chain Reactions . | . . . . Alert | -11 -10 -10 -9 ------- Run | Yrd Mat Min Mat Maximum Alert Level 1 | . . 1 . Low Security (%) 90 | 100 100 83 100 Level 1 9 | . . 16 . Level 2 . | . . . . Level 3 . | . . . . Level 4 . | . . . . Level 5 . | . . . . High Security . | . . . . Max Security . | . . . . Peak Influence 268 | . 105 268 100 Initial 100 | . . 36 100 Average 97 | . 43 137 100 Influence Increases 612 | . 175 437 . Destroy 0b10 Robot/C 300 | . 60 240 . Destroy 0b10 Robot/NC 15 | . . 15 . Destroy Leader 50 | . 10 40 . Disable Machine 15 | . . 15 . Destroy Structure 52 | . . 52 . Lose Combat Pursuer 180 | . 105 75 . Influence Decreases 512 | . 80 275 157 Entered New Map 216 | . . 59 157 Time Decay 276 | . 70 206 . Lost Part 20 | . 10 10 . Squads Dispatched 2 | . 2 . . Investigation 1 | . 1 . . Extermination . | . . . . Reinforcement 1 | . 1 . . Assault . | . . . . Garrison . | . . . . Intercept . | . . . . Searches Triggered . | . . . . Construction Impeded . | . . . . Haulers Reinforced . | . . . . Active Scanning Responses . | . . . . Cargo Convoy Interrupts . | . . . . Stealth | -11 -10 -10 -9 --------- Run | Yrd Mat Min Mat Distress Signals 1 | . 1 . . Communications Jammed . | . . . . Distress Signals . | . . . . Times Spotted 37 | . 22 15 . Peak Tracking Total 6 | . 6 4 . Tactical Retreats 5 | . 3 2 . Traps | -11 -10 -10 -9 ------- Run | Yrd Mat Min Mat Traps Triggered 1 | . 1 . . Indirectly . | . . . . Trap Hack Attempts . | . . . . Triggered . | . . . . Disarmed . | . . . . Reprogrammed . | . . . . Reused . | . . . . Traps Extracted . | . . . . Installed . | . . . . Triggered . | . . . . Machines | -11 -10 -10 -9 ---------- Run | Yrd Mat Min Mat Machines Disabled 1 | . . 1 . Max in Single Turn 1 | . . 1 . Machines Repaired . | . . . . Machines Dismantled . | . . . . Machines Sabotaged . | . . . . Overloaded Fab Kills . | . . . . Hacking | -11 -10 -10 -9 --------- Run | Yrd Mat Min Mat Machines Accessed 4 | . 4 . . Terminals 4 | . 4 . . Fabricators . | . . . . Repair Stations . | . . . . Recycling Units . | . . . . Scanalyzers . | . . . . Garrison Access . | . . . . Total Hacks 13 | . 13 . . Successful 3 | . 3 . . Failed 10 | . 10 . . Catastrophic . | . . . . Database Lockouts . | . . . . Manual 13 | . 13 . . Terminals 13 | . 13 . . Fabricators . | . . . . Repair Stations . | . . . . Recycling Units . | . . . . Scanalyzers . | . . . . Garrison Access . | . . . . Terminal Hacks 1 | . 1 . . Robot Analysis 1 | . 1 . . Fabricator Hacks . | . . . . Repair Station Hacks . | . . . . Recycling Unit Hacks . | . . . . Scanalyzer . | . . . . Garrison Access Hacks . | . . . . Unauthorized Hacks 2 | . 2 . . Terminals 2 | . 2 . . Botnet 2 | . 2 . . Fabricators . | . . . . Repair Stations . | . . . . Recycling Units . | . . . . Scanalyzers . | . . . . Garrison Access . | . . . . Data Cores Recovered . | . . . . Used . | . . . . Hacking Detections 4 | . 4 . . Full Trace Events 1 | . 1 . . Feedback Events . | . . . . Feedback Blocked . | . . . . Robot Schematics Acquired . | . . . . Robots Built . | . . . . Authchips . | . . . . Time . | . . . . Total Robot Build Rating . | . . . . Part Schematics Acquired . | . . . . Parts Built . | . . . . Authchips . | . . . . Time . | . . . . Total Part Build Rating . | . . . . Part Studies Acquired . | . . . . Parts Repaired . | . . . . Time . | . . . . Parts Recycled . | . . . . Recycled Matter . | . . . . Retrieved Matter . | . . . . Retrieved Components . | . . . . Parts Scanalyzed . | . . . . Part Schematics Acquired . | . . . . Parts Damaged . | . . . . Bothacking | -11 -10 -10 -9 ------------ Run | Yrd Mat Min Mat Used RIF Installer . | . . . . Robots Hacked . | . . . . Non-combat . | . . . . Combat . | . . . . Robot Hacks Applied . | . . . . Relay Couplers Released . | . . . . Fabnet Peak Effective % . | . . . . Robots Rewired . | . . . . Allies Hacked . | . . . . Hacks Repelled . | . . . . Allies | -11 -10 -10 -9 -------- Run | Yrd Mat Min Mat Total Allies . | . . . . Largest Group . | . . . . Highest-Rated Group . | . . . . Highest-Rated Ally . | . . . . Total Orders . | . . . . Ally Attacks . | . . . . Total Damage . | . . . . Kills . | . . . . Allies Corrupted . | . . . . Allies Melted . | . . . . Intel | -11 -10 -10 -9 ------- Run | Yrd Mat Min Mat Active Infowar (turns) . | . . . . Robot Analysis Total 1 | . 1 . . Derelict Logs Recovered 2 | . . 2 . Drone Launches . | . . . . Drone Recoveries . | . . . . Exploration | -11 -10 -10 -9 ------------- Run | Yrd Mat Min Mat Turns Passed 697 | 54 214 427 2 Spaces Moved 863 | 40 353 465 5 Core 5 | 5 . . . Treads . | . . . . Legs 54 | 35 19 . . Wheels . | . . . . Hover . | . . . . Flight 804 | . 334 465 5 Fastest Speed 37 | 50 37 37 37 Average Speed 69 | 111 43 85 37 Slowest Speed 200 | 120 200 117 37 Overloaded Moves . | . . . . Propulsion Burnouts . | . . . . Robots Hopped 10 | . 5 5 . Potential Cave-ins . | . . . . Cave-ins Triggered . | . . . . Exploration Rate (%) 40 | 3 69 86 3 Regions Visited 3 Branch Regions 1 Pre-discovered Areas . | . . . . Known Exits Taken . | . . . . Unknown Exits Taken 3 | 1 1 1 . Scrap Searched 1 | . . 1 . Spaces Dug . | . . . . Terrain Destroyed 65 | . . 65 . Melee . | . . . . Projectile . | . . . . AOE 65 | . . 65 . Terrain Rammed . | . . . . Walls Destroyed . | . . . . Machines Disabled . | . . . . Actions | -11 -10 -10 -9 --------- Run | Yrd Mat Min Mat Total 915 | 46 381 483 5 Wait 4 | . 2 2 . Move 840 | 39 342 454 5 Hop 10 | . 5 5 . Pick Up 6 | 1 4 1 . Fast Attach 10 | 6 3 1 . Attach 6 | . 2 4 . Detach 7 | . 4 3 . Swap 4 | . 2 2 . Drop 5 | . 3 2 . Fire 22 | . 14 8 . Melee . | . . . . Ram 1 | . . 1 . Kick . | . . . . Crush . | . . . . Escape Stasis . | . . . . Rewire . | . . . . Trap . | . . . . Miscellaneous . | . . . . Route ------- -11/Scrapyard -10/Materials (discovered 2 exits: [*Mat] / [*Min]) -10/Mines (discovered 2 exits: [*Mat x2]) -9/Materials History --------- Turn | Location | Event 3 | -11/Scrapyard | Discovered new exit (range 15) 55 | -11/Scrapyard | Entered Materials 237 | -10/Materials | Discovered new exit (range 14) 248 | -10/Materials | Discovered new exit (range 16) 269 | -10/Materials | Entered Mines 282 | -10/Mines | Received a Rocket Launcher from a helpful Derelict 314 | -10/Mines | Build established: Mutant 387 | -10/Mines | Discovered new exit (range 10) 421 | -10/Mines | Discovered new exit (range 8) 579 | -10/Mines | Learned Materials stockpile data 589 | -10/Mines | Learned Materials trap positions 606 | -10/Mines | Core integrity fell below 50% 696 | -10/Mines | Entered Materials 696 | -9/Materials | Evolved 2 slots: Utility x2 697 | -9/Materials | Loaded intel: 5 trap records 698 | -9/Materials | Self-destructed Last Messages --------------- 00632_ K-01 Serf collects debris. 00636_ U-05 Engineer lays Concrete. 00637_ K-01 Serf collects debris. 00638_ U-05 Engineer lays Concrete. 00640_ U-05 Engineer builds a Wall. 00642_ K-01 Serf collects debris. 00644_ U-05 Engineer lays Concrete. 00645_ R-06 Scavenger collects Flight Unit. 00646_ K-01 Serf collects debris. 00660_ U-05 Engineer lays Concrete. 00661_ The unstable cave ceiling collapses. 00662_ U-05 Engineer lays Concrete. 00664_ K-01 Serf collects debris. 00664_ U-05 Engineer lays Concrete. 00667_ U-05 Engineer builds a Wall. PARAMETERS=UTILITY+2 LOCATION=UNKNOWN GOAL=ESCAPE Loading Materials trap records (x5)... Loading Materials stockpile data (x10)... Map ----- +----------------------------------------------------+ | | | | | | | | | | | ?????????????????????????????????????????????????? | | ?????????????????????????????????????????????????? | | ?????????????????????????????????????????????????? | | ?????????????????????????????????????????????????? | | ?????????????????????????????????????????????????? | | ?????????????????????????????????????????????????? | | ?????????????????????????????????????????????????? | | ?????????????????????????????????????????????????? | | ?????????????????????????????????????????????????? | | ?????????????????????????????????????????????????? | | ?????????????????????????????????????????????????? | | ?????????????????????????????!???????????????????? | | ?????????????????????????????????????????????????? | | ???????????????????????#####?????????????????????? | | ???????????????????????# #?????????????????????? | | ????????????????######## #?????????????????????? | | ????????????????# # #?????????????????????? | | ????????????????# + ###+#########?????????? | | ????????????????# # ????????? | | ????????????????# # ????????? | | ????????????????# ?# @ |!! ????????? | | ????????????????# ?# !!! """ "??????????? | | ????????????????#####??# !! """?????????????? | | ???????????????????????# """?????????????? | | ???????????????????????# """?????????????? | | ???????????????????????# """?????????????? | | ??????????????????????? | ?????????????? | | ??????????????????????? ???????????[?? | | ??????????????????????? ???????????? | | ??????????????????????##+######+######???????????? | | ?????????????????????????????????????????????????? | | ?????????????????????????????????????????????????? | | ?????????????????????????????????????????????????? | | ?????????????????????????????????????????????????? | | ???????????????!?????????????????????????????????? | | ?????????????????????????????????????????????????? | | ?????????????????????????????????????????????????? | | ?????????????????????????????????????????????????? | | ?????????????????????????????????????????????????? | | ??????????????????????????????????^??????????????? | | ?????????????????????????????????????????????????? | | ?????????????????????????????????????????????????? | | ?????????????????????????????????????????????????? | | ?????????????????????????????????????????????????? | | ?????????????????????????????????????????????????? | +----------------------------------------------------+ Best States ------------- Heat Dissipation 25 Energy Generation 10 Energy Capacity 125 Matter Stores 288 Matter Capacity 300 Sight Range 16 Terrain Scan Density 10 Evasion (%) 62 Targeting Accuracy 5 Item Schematics ----------------- None Robot Schematics ------------------ None Fabricated ------------ Nothing Repaired ---------- Nothing Studied --------- None Alien Tech Used ----------------- None Achievements -------------- None Challenges ------------ None Game ------ Seed PointyCentriumBox Manual? 0 Play Time 00:12:37 Cumulative 337.3 hours Start 2026.07.22 @ 22:18:14 End 2026.07.23 @ 15:14:37 Sessions 3 Manual Loads 0 Difficulty Rogue Special Mode None Game No. 189 Rogue 115 Adventurer 74 Explorer 0 Win Type - Total 17 Types 14/0/0/3/0/0/0/0/0/0 Lore% 72 Gallery% 66 Achievement% 50 Wizard Run 0 Options --------- Layout 2 ASCII 0 Keyboard 0 Movement Mouse Keybinds 0 Fullscreen 1 Font 32/SmallcapsGlow Map View 50x44 Zoom Use 0% Tactical HUD 1 Map Filters NONE Filters NONE Steam 1 RUN: 917d289d-bc23-4990-a262-179f7945eca4